bitfinex-derivatives/quotes_ETHF0:USTF0_20240817
["timestamp","ask_amount","ask_price","bid_price","bid_amount"]
[1723891182278,2.80971538,2600.0,2599.9,0.23555857]
[1723891182474,2.91298416,2600.0,2599.9,0.23555857]
[1723891187482,6.75938416,2600.0,2599.9,0.0039469]
[1723891189388,7.76311538,2600.0,2599.9,0.0039469]
[1723891189786,6.75938416,2600.0,2599.9,0.0039469]
[1723891193873,7.76311538,2600.0,2599.9,0.0039469]
[1723891195381,3.91671538,2600.0,2599.9,0.23555857]
[1723891201585,1.00861538,2600.0,2599.9,0.23555857]
[1723891201890,1.11188416,2600.0,2599.9,0.23555857]
[1723891205593,2.55388416,2600.0,2599.9,0.23555857]
[1723891205787,2.92608416,2600.0,2599.9,0.23555857]
[1723891205987,7.77621538,2600.0,2599.9,0.0039469]
[1723891206285,5.66548416,2600.0,2599.9,0.0039469]
[1723891206492,6.77248416,2600.0,2599.9,0.0039469]
[1723891207295,7.77621538,2600.0,2599.9,0.0039469]
[1723891208288,7.77621538,2600.0,2599.7,0.34947145]
[1723891208289,1.44211,2599.8,2599.7,0.00577145]
[1723891208490,3.55242014,2599.8,2599.7,0.23738312]
[1723891209389,3.55242014,2599.8,2599.7,0.24033759]
[1723891211181,2.54911,2599.8,2599.7,0.24033759]
[1723891211392,3.55261864,2599.8,2599.7,0.24033759]
[1723891211995,2.44561864,2599.8,2599.7,0.24033759]
[1723891212187,3.55261864,2599.8,2599.7,0.24033759]
[1723891214298,6.76041864,2599.8,2599.7,0.24033759]
[1723891214691,5.75691,2599.8,2599.7,0.24033759]
[1723891217686,9.60331,2599.8,2599.7,0.00872592]
[1723891217886,5.75691,2599.8,2599.5,0.23161167]
[1723891218096,1.107,2599.6,2599.2,0.3662]
[1723891218289,2.54939,2599.3,2599.2,0.3662]
[1723891218694,2.90169,2599.3,2599.2,0.59781167]
[1723891218884,2.90169,2599.3,2599.2,0.60196742]
[1723891219393,1.4593,2599.3,2599.2,0.60196742]
[1723891220098,2.90169,2599.3,2599.2,0.60196742]
[1723891220997,1.79469,2599.3,2599.2,0.60196742]
[1723891221199,2.90169,2599.3,2599.2,0.60196742]
[1723891221495,2.90169,2599.3,2599.2,0.23576742]
[1723891222897,1.4593,2599.3,2599.2,0.23576742]
[1723891223799,3.2078,2599.4,2599.2,0.23576742]
[1723891223995,3.11772494,2599.3,2599.2,0.00415575]
[1723891224496,3.11772494,2599.3,2599.2,0.23576742]
[1723891225592,1.107,2599.3,2599.2,0.23576742]
[1723891226498,1.4512,2599.3,2599.2,0.23576742]
[1723891228504,2.89359,2599.3,2599.2,0.23576742]
[1723891232609,4.39937061,2599.3,2599.2,0.23576742]
[1723891234309,3.89707405,2599.3,2599.2,0.23576742]
[1723891234512,3.89704235,2599.3,2599.2,0.23576742]
[1723891234710,4.39937061,2599.3,2599.2,0.23576742]
[1723891235212,3.8969163,2599.3,2599.2,0.23576742]
[1723891236101,3.5527163,2599.3,2599.2,0.23576742]
[1723891237106,2.1103263,2599.3,2599.2,0.23576742]
[1723891237704,2.1103263,2599.3,2599.2,0.57846742]
[1723891238511,1.107,2599.3,2599.2,0.57846742]
[1723891238916,1.0033263,2599.4,2599.2,0.57846742]
[1723891239209,6.3545063,2599.5,2599.3,0.23161167]
[1723891239514,6.85696061,2599.5,2599.4,0.58561167]
[1723891239815,5.35118,2599.5,2599.4,0.58561167]
[1723891240302,6.85696061,2599.5,2599.4,0.58561167]
[1723891240714,7.96396061,2599.5,2599.4,0.58561167]
[1723891240905,6.45818,2599.5,2599.4,0.58561167]
[1723891241112,7.96396061,2599.5,2599.4,0.58561167]
[1723891241310,6.45818,2599.5,2599.4,0.58561167]
[1723891241809,7.96396061,2599.5,2599.4,0.58561167]
[1723891242308,7.96396061,2599.5,2599.4,0.23161167]
[1723891242510,6.45818,2599.5,2599.4,0.23161167]
[1723891242699,8.46588748,2599.5,2599.4,0.23161167]
[1723891242902,6.45818,2599.5,2599.4,0.23161167]
[1723891243102,24.7871,2599.5,2599.2,0.00415575]
[1723891243313,24.7871,2599.5,2599.0,0.00577145]
[1723891243314,1.107,2599.3,2599.0,0.00577145]
[1723891243508,5.7573,2599.1,2599.0,0.23738312]
[1723891243710,5.7573,2599.1,2599.0,0.00577145]
[1723891243906,9.9565,2599.1,2599.0,0.00577145]
[1723891244407,11.46084,2599.1,2599.0,0.00945563]
[1723891244808,9.9565,2599.1,2599.0,0.00945563]
[1723891245905,11.96235248,2599.1,2599.0,0.00945563]
[1723891246306,1.44272,2598.7,2598.6,0.3674]
[1723891246501,5.75752,2598.7,2598.6,0.3674]
[1723891246701,5.75752,2598.7,2598.6,0.59901167]
[1723891247304,5.75752,2598.7,2598.6,0.60268395]
[1723891249416,5.75752,2598.7,2598.6,0.23528395]
[1723891249716,7.63523748,2598.7,2598.6,0.23528395]
[1723891250012,6.13162,2598.7,2598.6,0.23528395]
[1723891250211,1.44283,2598.5,2598.4,0.00577145]
[1723891250411,2.55,2598.2,2598.1,0.7145]
[1723891250617,5.7578,2598.2,2598.1,0.7145]
[1723891250811,1.107,2598.2,2598.1,0.7145]
[1723891251212,1.107,2598.2,2598.1,0.71723288]
[1723891254014,5.7578,2598.2,2598.1,0.35673288]
[1723891255110,5.7578,2598.2,2598.1,0.00273288]
[1723891255323,6.1099,2598.2,2598.1,0.00273288]
[1723891256221,3.5599,2598.2,2598.1,0.00273288]
[1723891256417,1.107,2598.2,2598.1,0.00273288]
[1723891257521,5.7578,2598.2,2598.1,0.00273288]
[1723891258425,6.75965052,2598.2,2598.1,0.00273288]
[1723891258610,7.12875052,2598.2,2598.1,0.00273288]
[1723891260324,4.6508,2598.2,2598.1,0.00273288]
[1723891260522,5.7578,2598.2,2598.1,0.00273288]
[1723891262725,3.2078,2598.2,2598.1,0.00273288]
[1723891262925,1.79315,2598.3,2598.1,0.00273288]
[1723891263128,1.107,2598.2,2598.1,0.00273288]
[1723891264626,0.00577145,2598.4,2598.1,8.85153288]
[1723891264826,1.107,2598.3,2598.2,0.374]
[1723891265326,1.107,2598.3,2598.2,4.2228]
[1723891265529,1.107,2598.3,2598.2,0.7472]
[1723891266425,2.54994,2598.3,2598.2,0.7472]
[1723891266621,2.91984,2598.3,2598.2,0.7472]
[1723891268720,2.91984,2598.3,2598.2,0.3732]
[1723891268926,6.76864,2598.3,2598.1,0.00273288]
[1723891269230,3.2078,2598.2,2598.1,0.00273288]
[1723891269932,4.6508,2598.2,2598.1,0.00273288]
[1723891270135,6.00015052,2598.2,2598.1,0.00273288]
[1723891272826,6.1053,2598.2,2598.1,0.00273288]
[1723891278632,3.2078,2598.2,2598.1,0.00273288]
[1723891278841,4.3148,2598.2,2598.1,0.00273288]
[1723891279227,5.75779,2598.2,2598.1,0.00273288]
[1723891281134,6.75964052,2598.2,2598.1,0.00273288]
[1723891282532,5.31665052,2598.2,2598.1,0.00273288]
[1723891282842,4.3148,2598.2,2598.1,0.00273288]
[1723891283733,3.2078,2598.2,2598.1,5.29458288]
[1723891283941,1.00762197,2598.4,2598.1,5.29458288]
[1723891283942,1.107,2598.3,2598.1,5.29458288]
[1723891284442,1.107,2598.3,2598.2,3.8488]
[1723891285630,1.107,2598.3,2598.2,5.29179]
[1723891286840,0.00577145,2598.4,2598.3,1.44294]
[1723891287143,1.11277145,2598.4,2598.3,6.02694]
[1723891288942,2.11462197,2598.4,2598.3,6.02694]
[1723891291539,2.61562801,2598.4,2598.3,6.02694]
[1723891291741,1.11277145,2598.4,2598.3,6.02694]
[1723891291936,2.61562801,2598.4,2598.3,6.02694]
[1723891292644,2.11708694,2598.4,2598.3,6.02694]
[1723891295332,1.11277145,2598.4,2598.3,6.02694]
[1723891295537,2.11734013,2598.4,2598.3,6.02694]
[1723891295736,2.11734525,2598.4,2598.3,6.02694]
[1723891295939,2.11734087,2598.4,2598.3,6.02694]
[1723891297143,1.11277145,2598.4,2598.3,6.02694]
[1723891297340,1.11277145,2598.4,2598.3,7.03337679]
[1723891298148,1.11277145,2598.4,2598.3,6.02694]
[1723891298738,1.11277145,2598.4,2598.3,4.584]
[1723891301341,1.11277145,2598.4,2598.3,6.02694]
[1723891301550,1.11277145,2598.4,2598.3,7.03337679]
[1723891301743,1.11277145,2598.4,2598.3,6.02694]
[1723891301945,1.11277145,2598.4,2598.3,7.03337679]
[1723891302645,1.11277145,2598.4,2598.3,6.02694]
[1723891303652,0.00577145,2598.4,2598.3,7.13394]
[1723891304043,0.00577145,2598.4,2598.3,6.02694]
[1723891305247,0.00577145,2598.4,2598.3,4.584]
[1723891305450,1.11277145,2598.4,2598.3,4.584]
[1723891305644,1.47637145,2598.4,2598.3,4.584]
[1723891306446,1.47637145,2598.4,2598.3,0.7352]
[1723891306944,1.47637145,2598.4,2598.3,4.584]
[1723891308149,1.47637145,2598.4,2598.3,4.2204]
[1723891308456,1.47637145,2598.4,2598.3,0.3716]
[1723891308752,1.47637145,2598.4,2598.3,4.2204]
[1723891309052,1.47637145,2598.4,2598.3,3.8488]
[1723891309251,1.47637145,2598.4,2598.1,0.00273288]
[1723891309458,1.107,2598.2,2598.1,0.00273288]
[1723891309753,1.107,2598.2,2598.1,5.29457288]
[1723891310261,1.47637145,2598.4,2598.1,5.29457288]
[1723891310951,1.47637145,2598.4,2598.1,1.44577288]
[1723891311156,1.47637145,2598.4,2598.1,5.29457288]
[1723891311744,1.47637145,2598.4,2598.1,1.44577288]
[1723891313056,1.107,2598.2,2598.1,0.00273288]
[1723891313448,1.107,2598.2,2598.1,3.85153288]
[1723891314252,1.107,2598.2,2598.1,0.00273288]
[1723891315856,1.107,2598.2,2598.1,1.44578288]
[1723891316061,1.107,2598.2,2598.1,0.00273288]
[1723891319860,1.107,2598.2,2598.1,1.44578288]
[1723891322661,0.3614,2598.3,2598.1,1.44578288]
[1723891322856,1.4684,2598.3,2598.1,1.44578288]
[1723891324454,1.107,2598.3,2598.2,1.44299]
[1723891324662,1.107,2598.3,2598.2,1.79579]
[1723891324867,1.107,2598.3,2598.2,5.64459]
[1723891326354,1.107,2598.3,2598.2,4.2016]
[1723891327568,1.107,2598.3,2598.2,6.65102679]
[1723891328373,1.107,2598.3,2598.2,8.57513832]
[1723891328662,1.107,2598.3,2598.2,7.56870153]
[1723891328865,1.107,2598.3,2598.2,8.57720951]
[1723891329061,1.50862801,2598.4,2598.3,1.44294]
[1723891329268,0.00577145,2598.4,2598.3,2.45143711]
[1723891329468,0.00577145,2598.4,2598.3,2.81083711]
[1723891329469,1.50862801,2598.4,2598.3,2.81083711]
[1723891330366,1.50862801,2598.4,2598.3,6.65963711]
[1723891330663,1.50862801,2598.4,2598.3,1.36789711]
[1723891330664,2.61562801,2598.4,2598.3,1.36789711]
[1723891330869,2.96552801,2598.4,2598.3,0.3594]
[1723891331757,1.46267145,2598.4,2598.3,0.3594]
[1723891333164,3.46852393,2598.4,2598.3,0.3594]
[1723891333369,1.46267145,2598.4,2598.3,0.3594]
[1723891334768,1.46267145,2598.4,2598.2,1.00849711]
[1723891335089,1.46267145,2598.4,2598.1,1.01122999]
[1723891335090,0.3475,2598.3,2598.1,1.01122999]
[1723891335272,2.61511319,2598.2,2598.1,1.01122999]
[1723891335474,2.61511319,2598.2,2598.1,2.93557036]
[1723891336157,2.61511319,2598.2,2598.1,1.01122999]
[1723891336361,7.76364248,2598.2,2598.1,0.00273288]
[1723891336559,1.4431,2598.0,2597.9,0.00384764]
[1723891336760,5.06312718,2598.0,2597.9,0.00384764]
[1723891336971,6.3989,2598.0,2597.9,0.00384764]
[1723891337172,9.26851677,2598.0,2597.9,0.00384764]
[1723891337473,6.757,2598.0,2597.9,0.00384764]
[1723891337674,6.76151986,2598.0,2597.9,0.0084331]
[1723891338376,9.27158157,2598.0,2597.9,0.0084331]
[1723891339072,6.76151986,2598.0,2597.9,0.0084331]
[1723891339472,9.27158157,2598.0,2597.9,0.0084331]
[1723891339675,6.76151986,2598.0,2597.9,0.0084331]
[1723891339978,3.81304733,2598.0,2597.9,0.0084331]
[1723891340177,2.91271986,2598.0,2597.9,0.0084331]
[1723891341773,4.92004733,2598.0,2597.9,0.0084331]
[1723891342069,2.91271986,2598.0,2597.9,0.0084331]
[1723891342474,4.41751306,2598.0,2597.9,0.0084331]
[1723891342675,2.91271986,2598.0,2597.9,0.0084331]
[1723891343470,4.41739232,2598.0,2597.9,0.0084331]
[1723891344268,7.62519232,2598.0,2597.9,0.0084331]
[1723891344468,3.21231986,2598.0,2597.9,3.8572331]
[1723891344673,0.00451986,2598.0,2597.9,5.3003931]
[1723891344874,0.00451986,2598.0,2597.9,5.6478931]
[1723891345582,1.11151986,2598.0,2597.9,4.2047331]
[1723891346677,1.11151986,2598.0,2597.9,0.3559331]
[1723891346867,1.11151986,2598.0,2597.9,0.0084331]
[1723891354283,0.00451986,2598.0,2597.9,6.4073931]
[1723891354479,1e-08,2598.0,2597.9,16.8045131]
[1723891354688,0.00577145,2598.4,2598.2,1.44294]
[1723891354987,1.11277145,2598.4,2598.3,1.1113]
[1723891355874,1.11768134,2598.4,2598.3,1.1113]
[1723891364087,1.11768134,2598.4,2598.0,1.00704413]
[1723891364284,1.107,2598.2,2598.1,0.3541]
[1723891365391,1.107,2598.2,2598.0,0.3697]
[1723891365582,0.7341,2598.1,2597.9,0.0084331]
[1723891365786,1.107,2598.0,2597.9,0.0084331]
[1723891372497,1.50451731,2598.2,2597.9,3.8572331]
[1723891372696,0.379,2598.2,2597.9,0.0084331]
[1723891372998,1.486,2598.2,2597.9,0.0084331]
[1723891373496,1.486,2598.2,2597.9,1.4515731]
[1723891373791,1.486,2598.2,2597.9,0.0084331]
[1723891375300,1.486,2598.2,2597.9,1.4515831]
[1723891376500,1.486,2598.2,2597.9,0.0084331]
[1723891377004,2.99051731,2598.2,2597.9,0.0084331]
[1723891377197,1.107,2598.0,2597.9,0.0084331]
[1723891391618,1.107,2598.0,2597.9,3.8572331]
[1723891394312,1.107,2598.0,2597.9,4.86427723]
[1723891395007,1.87701731,2598.2,2597.9,6.30743723]
[1723891395215,4.71231731,2598.3,2598.1,1.44305]
[1723891395415,2.61151731,2598.3,2598.0,1.80857]
[1723891395709,0.3561,2598.2,2598.1,0.3704]
[1723891395921,0.3561,2598.2,2598.1,0.7122]
[1723891397916,0.3561,2598.2,2598.1,2.15525]
[1723891398216,2.61151731,2598.3,2598.1,2.15525]
[1723891398518,1.107,2598.3,2598.1,2.15525]
[1723891398916,2.62219865,2598.4,2598.1,2.15525]
[1723891400508,1.51519865,2598.4,2598.2,1.44298]
[1723891400825,1.50451731,2598.7,2598.6,1.44277]
[1723891401121,5.21512747,2598.8,2598.6,1.44277]
[1723891401122,4.71231731,2598.8,2598.6,1.44277]
[1723891401422,3.2078,2598.8,2598.7,0.3489]
[1723891401622,3.2078,2598.8,2598.7,1.0581]
[1723891401821,3.21204738,2598.8,2598.7,1.0581]
[1723891402010,0.00424738,2598.8,2598.7,2.50081]
[1723891402718,0.00424738,2598.8,2598.7,1.0581]
[1723891403419,0.37054738,2598.8,2598.7,1.0581]
[1723891403610,1.47754738,2598.8,2598.7,1.0581]
[1723891408024,0.00577145,2599.0,2598.9,1.44259]
[1723891408212,0.00577145,2599.0,2598.9,2.54959]
[1723891408419,0.00577145,2599.0,2598.9,6.39759]
[1723891408917,0.00939562,2599.0,2598.9,6.39759]
[1723891410135,0.00939562,2599.0,2598.9,11.39759]
[1723891412118,0.00939562,2599.0,2598.8,3.2078]
[1723891412422,0.00939562,2599.0,2598.8,4.65044]
[1723891413123,0.35149562,2599.0,2598.8,4.65044]
[1723891414228,0.35149562,2599.0,2598.8,5.75744]
[1723891415423,0.35149562,2599.0,2598.8,2.54964]
[1723891416635,0.35149562,2599.0,2598.9,1.44259]
[1723891416932,0.00939562,2599.0,2598.9,1.44259]
[1723891417131,0.00939562,2599.0,2598.9,5.29059]
[1723891417729,0.00939562,2599.0,2598.9,3.848]
[1723891420829,0.00939562,2599.0,2598.9,5.29059]
[1723891422431,0.00939562,2599.0,2598.9,1.44259]
[1723891429336,0.00939562,2599.0,2598.9,5.29059]
[1723891429530,4.71231731,2599.9,2598.9,8.848]
[1723891429732,0.7397,2599.8,2599.5,1.44221]
[1723891429929,0.7397,2599.8,2599.7,1.107]
[1723891430430,0.7397,2599.8,2599.7,2.54914]
[1723891430628,0.00314431,2599.8,2599.7,6.39554]
[1723891431830,0.00314431,2599.8,2599.7,2.54914]
[1723891440438,0.00314431,2599.8,2599.7,6.39554]
[1723891441940,0.00314431,2599.8,2599.7,2.54914]
[1723891444939,0.00314431,2599.8,2599.7,6.39554]
[1723891447838,0.00314431,2599.8,2599.7,2.54914]
[1723891448235,0.00314431,2599.8,2599.7,1.107]
[1723891450341,0.00314431,2599.8,2599.7,2.54914]
[1723891450642,0.00314431,2599.8,2599.7,1.107]
[1723891459344,0.00314431,2599.8,2599.7,2.54914]
[1723891459746,0.3561,2600.3,2599.7,13.96405435]
[1723891460056,0.3561,2600.3,2600.2,1.44187]
[1723891460545,0.3561,2600.3,2600.2,2.13857]
[1723891460741,0.3598553,2600.3,2600.2,2.14161827]
[1723891462945,0.3598553,2600.3,2600.2,0.69974827]
[1723891466754,0.3598553,2600.3,2600.2,2.14161827]
[1723891467548,0.3598553,2600.3,2600.2,0.69974827]
[1723891469247,0.3598553,2600.3,2600.2,2.14161827]
[1723891469444,0.0037553,2600.3,2600.2,2.14161827]
[1723891469647,0.0037553,2600.3,2600.2,2.48581827]
[1723891475253,0.0037553,2600.3,2600.2,3.49376185]
[1723891475753,0.0037553,2600.3,2600.2,0.00304827]
[1723891475957,7.15378261,2600.3,2600.2,0.00304827]
[1723891477346,5.71197261,2600.3,2600.2,0.00304827]
[1723891477549,5.71197261,2600.3,2600.2,1.11004827]
[1723891478858,7.15378261,2600.3,2600.2,1.11004827]
[1723891482262,5.71197261,2600.3,2600.2,1.11004827]
[1723891483358,5.6492653,2600.3,2600.2,1.11004827]
[1723891484450,11.7562653,2600.3,2600.2,0.00304827]
[1723891484655,14.26632701,2600.3,2600.2,0.00304827]
[1723891485170,11.7562653,2600.3,2600.2,0.00304827]
[1723891487569,14.26692395,2600.3,2600.2,0.00304827]
[1723891487959,11.7562653,2600.3,2600.2,0.00304827]
[1723891488456,14.26682351,2600.3,2600.2,0.00304827]
[1723891500057,10.42122351,2600.3,2600.2,0.00304827]
[1723891500262,14.26682351,2600.3,2600.2,0.00304827]
[1723891502062,1.44198,2600.0,2599.9,0.3486]
[1723891502260,4.64978,2600.0,2599.9,0.3486]
[1723891502660,5.38028,2600.0,2599.9,0.3486]
[1723891503170,5.38028,2600.0,2599.9,0.35317321]
[1723891504374,4.71313041,2600.0,2599.9,0.35317321]
[1723891507981,16.61058181,2600.0,2599.8,0.3512]
[1723891508265,1.4422,2599.6,2599.5,0.37827145]
[1723891508474,7.76421055,2599.6,2599.5,0.37827145]
[1723891508776,11.61141055,2599.6,2599.5,0.37827145]
[1723891508966,2.00721055,2599.6,2599.5,1.48839308]
[1723891509168,1.50528204,2599.8,2599.5,1.48839308]
[1723891509372,1.50514006,2599.8,2599.7,1.107]
[1723891511970,1.50514006,2599.8,2599.6,1.107]
[1723891512374,1.50514006,2599.8,2599.7,0.3705]
[1723891513166,1.50514006,2599.8,2599.7,0.7263]
[1723891513572,4.71294006,2599.9,2599.7,0.7263]
[1723891514064,4.71294006,2599.9,2599.8,0.3559]
[1723891514468,8.55934006,2599.9,2599.8,0.3559]
[1723891514663,7.0542,2599.9,2599.8,0.3559]
[1723891516377,8.49623,2599.9,2599.8,0.3559]
[1723891516678,1.4422,2599.6,2599.5,0.00889308]
[1723891516876,2.94601606,2599.6,2599.5,0.00889308]
[1723891520477,1.4422,2599.6,2599.5,0.00889308]
[1723891520672,16.60928808,2599.6,2599.5,1e-08]
[1723891520875,16.0464,2599.6,2599.5,1e-08]
[1723891521176,18.55565226,2599.6,2599.5,1e-08]
[1723891521476,16.0464,2599.6,2599.5,1e-08]
[1723891524178,18.54915892,2599.6,2599.5,1e-08]
[1723891524680,16.0464,2599.6,2599.5,1e-08]
[1723891525269,18.54866154,2599.6,2599.5,1e-08]
[1723891525978,16.0464,2599.6,2599.5,1e-08]
[1723891526171,18.54818184,2599.6,2599.5,1e-08]
[1723891529776,16.0464,2599.6,2599.5,1e-08]
[1723891530275,18.54702912,2599.6,2599.5,1e-08]
[1723891530582,16.0464,2599.6,2599.5,1e-08]
[1723891530782,1.44253,2599.0,2598.9,1.0929]
[1723891531086,5.75733,2599.0,2598.9,1.0929]
[1723891531880,5.75733,2599.0,2598.9,1.09621562]
[1723891532078,6.12893,2599.0,2598.9,0.37361562]
[1723891532673,9.97693,2599.0,2598.9,0.00331562]
[1723891532884,1.44264,2598.8,2598.7,0.00577145]
[1723891533073,2.54964,2598.8,2598.7,0.00577145]
[1723891533884,2.54964,2598.8,2598.7,0.0092636]
[1723891537073,5.75744,2598.8,2598.7,0.0092636]
[1723891540390,1.81994145,2599.0,2598.7,0.0092636]
[1723891540582,1.107,2598.9,2598.7,0.0092636]
[1723891540983,2.54959,2598.9,2598.7,0.0092636]
[1723891545498,0.37737145,2599.0,2598.7,0.0092636]
[1723891545499,1.44833145,2599.0,2598.7,0.0092636]
[1723891545793,1.107,2598.9,2598.7,0.0092636]
[1723891552500,2.54964,2598.8,2598.7,0.0092636]
[1723891552716,2.90964,2598.8,2598.7,0.0092636]
[1723891559998,4.41009026,2598.8,2598.7,0.0092636]
[1723891560402,4.41014282,2598.8,2598.7,0.0092636]
[1723891561108,8.75824035,2598.8,2598.7,0.0092636]
[1723891562306,8.75932277,2598.8,2598.7,0.0092636]
[1723891562492,6.75764,2598.8,2598.7,0.0092636]
[1723891562695,8.75930866,2598.8,2598.7,0.0092636]
[1723891563107,6.75764,2598.8,2598.7,0.0092636]
[1723891564394,9.25839044,2598.8,2598.7,0.0092636]
[1723891566304,6.75764,2598.8,2598.7,0.0092636]
[1723891566510,6.75764,2598.8,2598.7,0.00349215]
[1723891566511,11.75764,2598.8,2598.7,0.00349215]
[1723891566700,11.75764,2598.8,2598.1,0.3624]
[1723891566701,1.44288,2598.4,2598.1,0.3624]
[1723891566900,1.107,2598.2,2598.1,0.3624]
[1723891567596,1.107,2598.2,2598.1,0.36558252]
[1723891567597,1.10975322,2598.2,2598.1,0.36558252]
[1723891569405,2.55273322,2598.2,2598.1,0.00318252]
[1723891569798,4.55682657,2598.2,2598.1,0.00318252]
[1723891570210,2.55273322,2598.2,2598.1,0.00318252]
[1723891572106,4.05453543,2598.2,2598.1,0.00318252]
[1723891573007,2.55273322,2598.2,2598.1,0.00318252]
[1723891574014,6.96076293,2598.2,2597.9,0.00384764]
[1723891574205,2.60864938,2598.0,2597.9,0.00384764]
[1723891575009,2.60864938,2598.0,2597.9,0.00870516]
[1723891575600,4.05173938,2598.0,2597.9,0.00870516]
[1723891576203,2.55009,2598.0,2597.9,0.00870516]
[1723891576604,2.92469,2598.0,2597.9,0.00870516]
[1723891578012,4.42633938,2598.0,2597.9,0.00870516]
[1723891578217,2.92469,2598.0,2597.9,0.00870516]
[1723891578709,7.63413938,2598.0,2597.9,0.00870516]
[1723891579017,6.13249,2598.0,2597.9,0.00870516]
[1723891579505,7.63413938,2598.0,2597.9,0.00870516]
[1723891581002,5.02549,2598.0,2597.9,0.00870516]
[1723891581207,4.3148,2598.0,2597.9,0.00870516]
[1723891581414,4.3148,2598.0,2597.9,0.36730516]
[1723891581415,2.55009,2598.0,2597.9,0.36730516]
[1723891581611,5.75789,2598.0,2597.9,0.36730516]
[1723891581902,4.3148,2598.0,2597.9,0.36730516]
[1723891582120,1.44306,2598.1,2597.9,0.36730516]
[1723891582305,1.107,2598.0,2597.9,0.36730516]
[1723891582909,4.3148,2598.0,2597.9,0.36730516]
[1723891583109,1.107,2598.0,2597.9,0.36730516]
[1723891585415,2.55009,2598.0,2597.9,0.36730516]
[1723891589517,1.107,2598.0,2597.9,0.36730516]
[1723891592120,3.21055322,2598.2,2597.9,5.32310516]
[1723891592323,0.00275322,2598.2,2597.9,1.47430516]
[1723891593826,1.107,2598.1,2597.9,0.36730516]
[1723891594430,1.107,2598.0,2597.9,0.36730516]
[1723891594819,1.107,2598.0,2597.9,4.21610516]
[1723891595720,1.107,2598.0,2597.9,0.36730516]
[1723891596617,2.55009,2598.0,2597.9,0.36730516]
[1723891597227,1.107,2598.0,2597.9,0.36730516]
[1723891597923,2.55009,2598.0,2597.9,0.00870516]
[1723891598231,4.3148,2598.0,2597.9,0.00870516]
[1723891598527,4.3148,2598.0,2597.9,0.36510516]
[1723891598827,0.00275322,2598.2,2598.1,1.44303]
[1723891599020,0.3664026,2598.5,2598.1,1.107]
[1723891599223,3.21357145,2599.0,2598.5,1.44277]
[1723891599426,4.32057145,2599.0,2598.6,1.4765]
[1723891599730,1.11277145,2599.0,2598.6,1.4765]
[1723891600231,1.107,2598.8,2598.6,1.4765]
[1723891600433,1.107,2598.8,2598.6,0.3695]
[1723891601334,3.2078,2598.9,2598.6,0.3695]
[1723891601530,0.0100991,2599.0,2598.6,2.91925]
[1723891602037,1.1170991,2599.0,2598.6,1.4765]
[1723891602225,1.1170991,2599.0,2598.7,0.7187]
[1723891603533,0.0100991,2599.0,2598.7,0.7187]
[1723891603835,1.107,2598.9,2598.7,0.7187]
[1723891607338,1.107,2598.9,2598.7,2.1614]
[1723891607837,1.107,2598.9,2598.7,0.7187]
[1723891612933,1.107,2598.9,2598.7,0.3469]
[1723891613636,1.107,2598.9,2598.7,1.7896]
[1723891614540,1.107,2598.9,2598.7,0.3469]
[1723891615645,0.3659991,2599.0,2598.7,1.78958]
[1723891615835,1.4729991,2599.0,2598.7,1.78958]
[1723891616036,1.4729991,2599.0,2598.7,0.3469]
[1723891616437,0.3758,2598.9,2598.7,0.3469]
[1723891618243,1.107,2598.8,2598.6,0.3695]
[1723891618452,0.3722,2598.7,2598.6,0.3695]
[1723891618746,0.7363,2598.7,2598.6,0.3695]
[1723891618950,0.7363,2598.7,2598.6,3.848]
[1723891619848,3.286,2598.7,2598.6,3.848]
[1723891620049,3.286,2598.7,2597.8,5.388]
[1723891620050,1.44275,2598.6,2597.8,5.388]
[1723891620350,1.107,2598.2,2597.9,1.11570516]
[1723891620552,0.3496,2598.1,2597.9,1.11570516]
[1723891620847,0.3496,2598.1,2598.0,0.3555]
[1723891621253,0.3496,2598.1,2598.0,4.2043]
[1723891622247,0.3496,2598.1,2598.0,5.3113]
[1723891622556,0.3496,2598.1,2598.0,6.75439]
[1723891623556,1.107,2598.5,2598.1,1.44302]
[1723891623746,0.7129,2598.4,2598.1,2.55002]
[1723891624252,0.7129,2598.4,2598.1,1.107]
[1723891624450,0.7129,2598.4,2598.1,2.55003]
[1723891624652,0.7129,2598.4,2598.1,1.107]
[1723891625554,3.9207,2598.4,2598.1,1.107]
[1723891625743,5.0277,2598.4,2598.1,1.107]
[1723891626051,5.0277,2598.4,2598.0,2.90556]
[1723891626247,6.47057,2598.4,2598.0,1.4625]
[1723891628948,1.44293,2598.3,2598.0,1.4625]
[1723891629160,6.47059,2598.4,2598.0,1.4625]
[1723891629344,1.107,2598.2,2598.0,1.4625]
[1723891629550,0.3614,2598.1,2598.0,1.4625]
[1723891629754,0.7259,2598.1,2598.0,1.4625]
[1723891630154,0.7259,2598.1,2598.0,5.3113]
[1723891631649,0.7259,2598.1,2598.0,4.2043]
[1723891632551,0.7259,2598.1,2598.0,5.64739]
[1723891632753,0.3614,2598.1,2598.0,6.75439]
[1723891633560,0.3597,2598.3,2598.0,6.75439]
[1723891633755,0.3597,2598.3,2598.0,2.90559]
[1723891633756,0.7143,2598.3,2598.0,2.90559]
[1723891635767,0.3546,2598.3,2598.2,1.44298]
[1723891635961,0.3503,2598.6,2598.3,1.44292]
[1723891636158,0.3503,2598.6,2598.4,1.107]
[1723891636359,0.3503,2598.6,2598.4,2.54984]
[1723891636558,0.3503,2598.6,2598.5,1.44281]
[1723891636865,1.107,2598.9,2598.5,4.955]
[1723891637159,1.8248991,2599.0,2598.7,2.54967]
[1723891637359,1.8248991,2599.0,2598.8,0.3509]
[1723891637964,0.7178991,2599.0,2598.9,1.44259]
[1723891638157,0.3675991,2599.0,2598.8,2.90051]
[1723891639056,0.3675991,2599.0,2598.8,1.4579]
[1723891639363,0.3675991,2599.0,2598.8,0.3509]
[1723891639959,1.107,2598.9,2598.8,0.3509]
[1723891640355,1.107,2598.9,2598.8,4.1989]
[1723891640565,1.107,2598.9,2598.6,1.107]
[1723891640767,0.3497,2598.8,2598.6,1.107]
[1723891641068,0.3631,2598.7,2598.6,1.107]
[1723891641261,0.3631,2598.7,2598.6,4.955]
[1723891641454,0.3631,2598.7,2598.6,6.39775]
[1723891642365,0.3497,2598.8,2598.6,6.39775]